bitfinex/quotes_SOLUSD_20241024
["timestamp","ask_amount","ask_price","bid_price","bid_amount"]
[1729735522254,28.9492863,172.95,172.91,16.6031]
[1729735523652,28.9492863,172.94,172.85,30.1]
[1729735523855,28.9492863,172.94,172.89,28.9492863]
[1729735524165,28.9492863,172.92,172.87,44.8010863]
[1729735525049,28.9492863,172.92,172.87,15.8518]
[1729735525453,28.9492863,172.92,172.87,44.8010863]
[1729735525641,28.9492863,172.93,172.88,28.9492863]
[1729735525946,20.2311,173.0,172.87,15.8518]
[1729735525947,28.9492863,172.95,172.9,28.9492863]
[1729735526150,24.027864,172.96,172.91,28.9492863]
[1729735526347,24.027864,172.96,172.92,28.9492863]
[1729735526752,5.7801,173.01,172.95,28.9492863]
[1729735526965,28.9492863,173.0,172.95,28.9492863]
[1729735527445,28.9492863,172.96,172.88,20.0]
[1729735527646,28.9492863,172.96,172.91,28.9492863]
[1729735528042,28.9492863,172.95,172.88,20.0]
[1729735528263,28.9492863,172.94,172.89,28.9492863]
[1729735529069,28.9492863,172.95,172.9,28.9492863]
[1729735530665,28.9492863,172.94,172.89,28.9492863]
[1729735531248,28.9492863,172.95,172.9,28.9492863]
[1729735532358,0.25098,172.98,172.93,18.50289829]
[1729735532563,24.027864,172.98,172.93,18.50289829]
[1729735532952,23.902374,172.98,172.93,18.50289829]
[1729735533554,42.40527229,172.98,172.93,18.50289829]
[1729735534656,48.18627229,172.98,172.93,18.50289829]
[1729735534962,48.18627229,172.98,172.92,18.50289829]
[1729735535160,18.50289829,172.97,172.92,18.50289829]
[1729735536671,48.18627229,172.98,172.92,18.50289829]
[1729735537669,29.683374,172.98,172.92,18.50289829]
[1729735537874,18.50289829,172.97,172.92,18.50289829]
[1729735539060,18.50289829,172.97,172.91,18.50289829]
[1729735540574,18.50289829,172.97,172.92,18.50289829]
[1729735541251,5.78,173.01,172.92,18.50289829]
[1729735541456,18.50289829,172.97,172.92,18.50289829]
[1729735541761,18.50289829,172.98,172.93,18.50289829]
[1729735544185,29.682774,173.0,172.93,18.50289829]
[1729735544486,18.50289829,172.98,172.93,18.50289829]
[1729735544784,18.50237982,172.98,172.93,18.50237982]
[1729735545985,18.50237982,172.99,172.94,18.50237982]
[1729735546567,18.50237982,172.98,172.93,18.50237982]
[1729735547182,18.50237982,172.99,172.93,18.50237982]
[1729735547382,18.50237982,173.01,172.91,0.1]
[1729735547562,18.50237982,173.01,172.96,18.50237982]
[1729735547763,18.50237982,173.02,172.97,18.50237982]
[1729735548080,18.50237982,173.01,172.96,18.50237982]
[1729735549793,18.50237982,173.01,172.95,18.50237982]
[1729735550087,18.50237982,173.0,172.95,18.50237982]
[1729735550687,18.50237982,172.98,172.93,34.35417982]
[1729735551066,0.606243,173.04,172.94,18.5019325]
[1729735551270,0.606243,173.04,172.93,15.8518]
[1729735551271,18.5019325,173.01,172.96,18.5019325]
[1729735551470,18.5019325,172.99,172.94,18.5019325]
[1729735552386,18.5019325,173.0,172.94,18.5019325]
[1729735552604,18.5019325,172.99,172.94,18.5019325]
[1729735553493,18.5019325,173.0,172.95,18.5019325]
[1729735554496,18.5019325,173.0,172.93,15.8518]
[1729735554694,18.5019325,173.0,172.95,18.5019325]
[1729735554874,5.7796,173.02,172.95,18.5019325]
[1729735555074,18.5019325,173.01,172.96,18.5019325]
[1729735555292,18.5019325,173.01,172.93,15.8518]
[1729735555473,18.5019325,173.0,172.95,18.5019325]
[1729735558882,18.5019325,172.99,172.94,18.5019325]
[1729735559394,18.5019325,172.99,172.93,15.8518]
[1729735559592,5.7796,173.02,172.91,6.4175]
[1729735559593,18.5019325,172.95,172.91,20.0]
[1729735559967,18.5019325,172.95,172.9,18.5019325]
[1729735560169,18.5019325,172.94,172.9,20.0]
[1729735561699,18.5019325,172.91,172.84,15.7987]
[1729735561883,5.7813,172.97,172.85,18.5019325]
[1729735561884,18.5019325,172.9,172.85,18.5019325]
[1729735562588,18.5019325,172.91,172.85,18.5019325]
[1729735562771,18.5019325,172.9,172.85,18.5019325]
[1729735562977,18.5019325,172.89,172.85,20.0]
[1729735563191,18.5019325,172.88,172.84,15.7987]
[1729735563499,18.5019325,172.85,172.8,15.7987]
[1729735563671,24.027864,172.92,172.84,9.25096625]
[1729735563869,24.027864,172.92,172.88,18.5019325]
[1729735564093,0.25098,172.93,172.89,9.25096625]
[1729735564303,42.5297965,172.93,172.82,6.2905]
[1729735564593,18.5019325,172.91,172.86,18.5019325]
[1729735564803,18.5019325,172.91,172.82,6.1905]
[1729735564804,18.5019325,172.89,172.84,18.5019325]
[1729735565490,18.5019325,172.87,172.82,18.5019325]
[1729735565879,24.027864,172.89,172.85,18.5019325]
[1729735566287,24.027864,172.91,172.87,18.5019325]
[1729735566997,18.5019325,172.92,172.87,18.5019325]
[1729735568503,18.5019325,172.91,172.86,18.5019325]
[1729735571093,24.027864,172.89,172.81,20.0]
[1729735571283,18.5019325,172.88,172.84,18.5019325]
[1729735571486,18.5019325,172.88,172.83,18.5019325]
[1729735571812,18.5019325,172.87,172.83,18.5019325]
[1729735573102,18.5019325,172.87,172.82,18.5019325]
[1729735574697,18.5019325,172.87,172.83,18.5019325]
[1729735575394,18.5019325,172.87,172.82,18.5019325]
[1729735575573,18.5019325,172.84,172.79,18.5019325]
[1729735577189,18.5019325,172.84,172.77,20.0]
[1729735577388,18.5019325,172.83,172.78,18.5019325]
[1729735577594,18.5019325,172.85,172.8,18.5019325]
[1729735578103,24.027864,172.84,172.8,18.5019325]
[1729735579405,5.7853,172.86,172.77,20.0]
[1729735579406,6.455,172.87,172.83,9.25096625]
[1729735579699,24.9569325,172.91,172.86,18.5019325]
[1729735580478,24.9569325,172.91,172.86,9.25096625]
[1729735580684,24.9569325,172.91,172.8,74.00773]
[1729735580685,5.7837,172.9,172.87,18.5019325]
[1729735582110,24.027864,172.89,172.86,18.5019325]
[1729735583508,24.027864,172.89,172.85,18.5019325]
[1729735583710,42.5297965,172.89,172.84,18.5019325]
[1729735583908,42.5297965,172.89,172.77,20.1]
[1729735583909,42.5297965,172.89,172.85,18.5019325]
[1729735584207,24.027864,172.89,172.85,18.5019325]
[1729735586305,24.027864,172.89,172.86,18.5019325]
[1729735587521,24.027864,172.89,172.85,18.5019325]
[1729735588015,24.027864,172.89,172.86,18.5019325]
[1729735589112,48.28506383,172.89,172.77,20.0]
[1729735589317,23.902374,172.87,172.82,18.5019325]
[1729735590098,18.6274225,172.87,172.77,20.0]
[1729735590295,0.12549,172.85,172.81,18.5019325]
[1729735590495,23.902374,172.85,172.81,18.5019325]
[1729735590727,23.902374,172.85,172.82,18.5019325]
[1729735591023,23.902374,172.86,172.82,18.5019325]
[1729735591196,0.12549,172.85,172.82,18.5019325]
[1729735593396,18.6274225,172.85,172.8,18.5019325]
[1729735596516,18.6274225,172.85,172.77,20.0]
[1729735596517,0.12549,172.83,172.76,16.25]
[1729735596702,18.6274225,172.83,172.78,18.5019325]
[1729735597514,0.12549,172.83,172.79,18.5019325]
[1729735597826,0.12549,172.83,172.76,16.25]
[1729735598033,23.902374,172.82,172.78,18.5019325]
[1729735598315,0.12549,172.81,172.76,16.25]
[1729735598514,23.902374,172.82,172.79,18.5019325]
[1729735598718,23.902374,172.82,172.76,16.25]
[1729735598904,15.4438,172.86,172.81,18.5019325]
[1729735599104,5.784,172.89,172.85,18.5019325]
[1729735599321,5.784,172.89,172.86,18.5019325]
[1729735599511,5.784,172.89,172.85,18.5019325]
[1729735600910,24.027864,172.88,172.85,18.5019325]
[1729735601399,24.027864,172.88,172.84,18.5019325]
[1729735602107,24.027864,172.88,172.83,18.5019325]
[1729735602719,29.812264,172.88,172.83,18.5019325]
[1729735604822,29.812264,172.88,172.86,18.5019325]
[1729735605018,6.455,172.91,172.87,18.5019325]
[1729735605219,5.7833,172.91,172.89,18.5019325]
[1729735605606,5.7833,172.91,172.88,18.5019325]
[1729735606123,5.783,172.92,172.88,18.5019325]
[1729735606423,24.027864,172.91,172.87,28.93437762]
[1729735608108,29.811264,172.91,172.87,28.93437762]
[1729735608326,0.25098,172.91,172.89,28.93437762]
[1729735608502,5.7828,172.93,172.9,28.93437762]
[1729735609915,24.027864,172.92,172.9,28.93437762]
[1729735610808,6.1977,172.95,172.91,28.93437762]
[1729735611020,5.7817,172.96,172.93,28.93437762]
[1729735611304,34.71607762,172.96,172.91,28.93437762]
[1729735611935,34.71607762,172.96,172.84,20.0]
[1729735612227,24.027864,172.95,172.91,28.93437762]
[1729735614823,24.027864,172.95,172.92,28.93437762]
[1729735615806,24.027864,172.95,172.93,28.93437762]
[1729735616010,24.027864,172.95,172.92,28.93437762]
[1729735616205,24.027864,172.95,172.91,28.93437762]
[1729735616417,24.027864,172.93,172.89,28.93437762]
[1729735616713,24.027864,172.93,172.9,28.93437762]
[1729735616916,0.25098,172.93,172.9,28.93437762]
[1729735618933,0.25098,172.93,172.89,28.93437762]
[1729735620841,0.25098,172.93,172.84,20.0]
[1729735621347,0.25098,172.93,172.89,28.93437762]
[1729735622852,29.18535762,172.93,172.88,14.46718881]
[1729735623015,0.25098,172.91,172.83,16.0756]
[1729735623559,23.776884,172.9,172.86,28.93437762]
[1729735623837,0.25098,172.89,172.86,28.93437762]
[1729735624013,23.776884,172.88,172.83,16.0756]
[1729735624219,23.776884,172.88,172.84,28.93437762]
[1729735624836,0.25098,172.87,172.83,28.93437762]
[1729735625135,52.96224162,172.84,172.79,44.77377762]
[1729735625337,28.93437762,172.88,172.83,28.93437762]
[1729735625522,0.25098,172.86,172.84,28.93437762]
[1729735625844,0.25098,172.86,172.79,15.8394]
[1729735626047,0.25098,172.86,172.83,28.93437762]
[1729735626219,0.25098,172.86,172.82,28.93437762]
[1729735627240,29.18535762,172.86,172.79,15.8394]
[1729735627424,29.18535762,172.86,172.81,28.93437762]
[1729735627827,23.776884,172.85,172.81,28.93437762]
[1729735628023,52.96224162,172.83,172.78,28.93437762]
[1729735628246,48.35220998,172.83,172.78,18.53834598]
[1729735630853,18.53834598,172.82,172.74,15.8394]
[1729735631027,24.027864,172.83,172.79,18.53834598]
[1729735631744,42.56620998,172.83,172.74,15.8394]
[1729735631939,42.56620998,172.83,172.79,18.53834598]
[1729735633161,42.56620998,172.83,172.78,18.53834598]
[1729735633447,18.53834598,172.82,172.74,15.8394]
[1729735633658,18.53834598,172.78,172.71,20.0]
[1729735633827,18.53834598,172.78,172.73,18.53834598]
[1729735634654,18.53834598,172.76,172.7,15.4909]
[1729735634859,18.53834598,172.76,172.71,18.53834598]
[1729735635637,18.53834598,172.75,172.7,18.53834598]
[1729735637042,18.53834598,172.76,172.71,18.53834598]
[1729735638642,23.776884,172.76,172.72,18.53834598]
[1729735640051,42.31522998,172.76,172.71,18.53834598]
[1729735640255,0.25098,172.75,172.71,18.53834598]
[1729735642556,6.1031,172.8,172.73,18.53834598]
[1729735642853,24.027864,172.78,172.74,18.53834598]
[1729735644548,24.027864,172.78,172.75,18.53834598]
[1729735646546,24.027864,172.78,172.74,18.53834598]
[1729735647467,23.776884,172.78,172.74,18.53834598]
[1729735647767,5.7869,172.81,172.77,18.53834598]
[1729735647951,24.32524598,172.81,172.76,18.53834598]
[1729735648140,18.53834598,172.8,172.75,18.53834598]
[1729735648754,18.53834598,172.8,172.67,20.1]
[1729735648755,42.56620998,172.79,172.74,18.53834598]
[1729735650169,48.35360998,172.79,172.74,18.53834598]
[1729735650371,29.815264,172.79,172.75,18.53834598]
[1729735650563,24.027864,172.79,172.76,18.53834598]
[1729735651563,0.25098,172.81,172.77,18.53834598]
[1729735651868,34.58144598,172.86,172.8,18.53834598]
[1729735652076,34.58144598,172.86,172.82,18.53834598]
[1729735652360,5.785,172.86,172.83,18.53834598]
[1729735652948,18.53834598,172.88,172.83,18.53834598]
[1729735653145,5.7847,172.87,172.84,18.53834598]
[1729735653949,23.05249927,172.9,172.79,15.296]
[1729735653950,18.53834598,172.88,172.83,18.53834598]
[1729735654266,24.027864,172.87,172.83,18.53834598]
[1729735655262,5.785,172.86,172.83,18.53834598]
[1729735655467,5.91029,172.87,172.84,18.53834598]
[1729735655675,0.12549,172.88,172.85,18.53834598]
[1729735655858,5.7841,172.89,172.86,18.53834598]
[1729735656065,7.00939927,172.9,172.87,18.53834598]
[1729735656245,12.79319927,172.9,172.87,18.53834598]
[1729735656447,7.00939927,172.9,172.87,18.53834598]
[1729735656649,17.04534575,172.94,172.89,18.53834598]
[1729735656948,5.7823,172.94,172.92,18.53834598]
[1729735657253,18.53834598,172.97,172.91,18.53834598]
[1729735657552,5.7816,172.96,172.93,18.53834598]
[1729735658944,6.1382,172.99,172.94,18.53834598]
[1729735659161,6.1382,172.99,172.89,74.15338392]
[1729735659162,5.78,173.01,172.97,18.53834598]
[1729735659366,7.00470046,173.02,172.99,18.53834598]
[1729735659548,12.78440046,173.02,172.99,18.53834598]
[1729735660051,7.00470046,173.02,173.0,18.53834598]
[1729735660371,7.00470046,173.02,173.01,28.88940198]
[1729735660568,0.606243,173.04,173.01,28.88940198]
[1729735661558,0.606243,173.04,173.02,28.88940198]
[1729735661775,0.606243,173.04,173.03,28.88940198]
[1729735664557,0.606243,173.04,173.02,28.88940198]
[1729735665469,52.91726598,173.03,172.95,20.0]
[1729735665668,52.91726598,173.03,172.98,28.88940198]
[1729735666350,52.91726598,173.03,172.95,20.0]
[1729735666656,28.88940198,173.0,172.95,28.88940198]
[1729735666855,24.027864,173.01,172.9,21.8994]
[1729735666856,52.91726598,173.01,172.96,28.88940198]
[1729735667074,52.91726598,173.01,172.97,28.88940198]
[1729735668458,5.7803,173.0,172.97,28.88940198]
[1729735668666,5.7799,173.02,172.99,28.88940198]
[1729735668868,5.7799,173.02,173.0,28.88940198]
[1729735670575,24.027864,173.03,173.0,28.88940198]
[1729735670765,0.606243,173.04,173.0,28.88940198]
[1729735671077,24.027864,173.03,173.0,28.88940198]
[1729735671576,6.385243,173.04,173.01,28.88940198]
[1729735672157,23.902374,173.03,173.0,28.88940198]
[1729735672373,23.902374,173.03,172.99,28.88940198]
[1729735674460,29.681774,173.03,172.99,28.88940198]
[1729735674662,29.681774,173.03,173.0,28.88940198]
[1729735674877,0.12549,173.02,172.97,28.88940198]
[1729735675076,0.12549,173.0,172.95,28.88940198]
[1729735675285,23.902374,172.99,172.95,28.88940198]
[1729735675877,0.12549,172.99,172.96,28.88940198]
[1729735676260,0.12549,172.99,172.97,28.88940198]
[1729735676461,24.027864,173.02,172.98,28.88940198]
[1729735676672,24.027864,173.02,172.99,28.88940198]
[1729735677570,24.027864,173.02,173.0,28.88940198]
[1729735678265,29.807664,173.02,172.99,28.88940198]
[1729735679000,29.807664,173.02,173.0,28.88940198]
[1729735679279,5.7798,173.02,173.0,28.88940198]
[1729735679887,29.807164,173.03,173.0,28.88940198]
[1729735682086,0.606243,173.04,173.02,28.88940198]
[1729735682261,6.385243,173.04,173.02,28.88940198]
[1729735682457,6.385243,173.04,173.01,28.88940198]
[1729735683262,24.027864,173.03,172.99,28.88940198]
[1729735684378,5.7796,173.02,172.99,28.88940198]
[1729735684979,5.7796,173.02,172.98,28.88940198]
[1729735688980,5.7796,173.02,172.99,28.88940198]
[1729735690289,29.49564498,173.04,173.01,28.88940198]
[1729735690290,0.606243,173.04,173.01,28.88940198]
[1729735690484,0.606243,173.04,173.03,28.88940198]
[1729735694289,24.027864,173.03,173.0,28.88940198]
[1729735694905,24.027864,173.03,172.97,22.2008]
[1729735694906,24.027864,173.03,173.01,28.88940198]
[1729735695791,29.807364,173.03,173.01,28.88940198]
[1729735696494,0.606243,173.04,173.02,28.88940198]
[1729735696697,0.606243,173.04,173.03,28.88940198]
[1729735697016,0.606243,173.04,173.02,28.88940198]
[1729735701109,24.027864,173.03,172.97,15.9635]
[1729735701303,52.91726598,173.03,172.98,28.88940198]
[1729735701489,52.91726598,173.01,172.93,22.2008]
[1729735701696,24.027864,172.99,172.95,28.88940198]
[1729735701901,52.91726598,172.99,172.94,28.88940198]
[1729735703198,5.781,172.98,172.94,28.88940198]
[1729735708117,5.781,172.98,172.95,28.88940198]
[1729735708314,5.781,172.98,172.94,18.50335592]
[1729735709314,42.53121992,172.97,172.92,18.50335592]
[1729735710413,5.7816,172.96,172.92,28.9206707]
[1729735711618,52.9485347,172.95,172.89,16.021]
[1729735711913,28.9206707,172.93,172.89,28.9206707]
[1729735712130,24.027864,172.92,172.88,28.9206707]
[1729735712318,52.9485347,172.92,172.85,16.021]
[1729735712628,28.9206707,172.91,172.86,31.6106707]
[1729735713210,28.9206707,172.91,172.86,28.9206707]
[1729735713521,34.7040707,172.91,172.86,28.9206707]
[1729735713904,52.9485347,172.9,172.85,28.9206707]
[1729735714105,52.9485347,172.88,172.83,28.9206707]
[1729735715114,28.9206707,172.87,172.83,28.9206707]
[1729735715324,58.7331347,172.88,172.83,28.9206707]
[1729735715814,29.812464,172.88,172.83,28.9206707]
[1729735716119,29.812464,172.88,172.84,28.9206707]
[1729735716291,29.812464,172.88,172.8,16.021]
[1729735716494,58.7331347,172.88,172.83,28.9206707]
[1729735719110,28.9206707,172.87,172.81,28.9206707]
[1729735719822,28.9206707,172.85,172.77,20.0]
[1729735720122,28.9206707,172.85,172.8,28.9206707]
[1729735720293,28.9206707,172.85,172.81,28.9206707]
[1729735720294,5.7856,172.84,172.81,28.9206707]
[1729735720491,5.7856,172.84,172.77,20.0]
[1729735720896,5.7856,172.84,172.81,28.9206707]
[1729735722922,24.027864,172.85,172.81,28.9206707]
[1729735723112,5.7849,172.87,172.84,28.9206707]
[1729735723717,24.027864,172.86,172.83,28.9206707]
[1729735724020,24.027864,172.86,172.82,28.9206707]
[1729735724998,29.813164,172.86,172.82,28.9206707]
[1729735725313,5.784,172.89,172.85,28.9206707]
[1729735725518,5.784,172.89,172.87,28.9206707]
[1729735726721,29.811164,172.91,172.87,28.9206707]
[1729735728111,58.7318347,172.91,172.86,28.9206707]
[1729735731332,34.7039707,172.91,172.86,28.9206707]
[1729735731517,5.783,172.92,172.88,28.9206707]
[1729735732319,5.783,172.92,172.88,18.51743646]
[1729735732931,24.027864,172.91,172.88,18.51743646]
[1729735733821,24.027864,172.91,172.89,18.51743646]
[1729735734119,5.783,172.92,172.89,18.51743646]
[1729735734619,24.027864,172.94,172.9,18.51743646]
[1729735734819,5.7813,172.97,172.93,18.51743646]
[1729735735007,18.51743646,172.94,172.84,16.021]
[1729735735216,18.51743646,172.93,172.88,18.51743646]
[1729735735932,24.30023646,172.93,172.88,18.51743646]
[1729735736430,18.51743646,172.9,172.84,16.021]
[1729735736637,18.51743646,172.9,172.85,18.51743646]
[1729735737333,18.51743646,172.89,172.84,16.021]
[1729735737534,18.51743646,172.89,172.79,20.0]
[1729735737833,18.51743646,172.88,172.78,22.1659]
[1729735738035,18.51743646,172.88,172.83,18.51743646]
[1729735738235,54.82830046,172.92,172.87,18.51743646]
[1729735738719,29.811164,172.92,172.88,18.51743646]
[1729735740320,5.7826,172.94,172.89,18.51743646]
[1729735740527,21.54021823,172.96,172.91,18.51743646]
[1729735740735,5.7818,172.96,172.92,18.51743646]
[1729735740935,5.7818,172.96,172.93,18.51743646]
[1729735741150,5.7818,172.96,172.92,18.51743646]
[1729735741441,18.51743646,172.93,172.88,18.51743646]
[1729735742114,24.027864,172.93,172.89,18.51743646]
[1729735742548,24.027864,172.93,172.9,18.51743646]
[1729735743041,24.027864,172.93,172.89,18.51743646]
[1729735743244,24.027864,172.93,172.91,18.51743646]
[1729735743439,0.12549,172.93,172.91,18.51743646]
[1729735743753,24.027864,172.94,172.91,18.51743646]
[1729735744228,48.32760046,172.94,172.89,18.51743646]
[1729735745145,48.32760046,172.94,172.85,22.1659]
[1729735745146,18.51743646,172.93,172.88,18.51743646]
[1729735746446,48.32760046,172.94,172.89,18.51743646]
[1729735747841,0.25098,172.94,172.91,18.51743646]
[1729735748050,24.29943646,172.96,172.91,18.51743646]
[1729735748237,24.29943646,172.96,172.9,18.51743646]
[1729735749132,42.54530046,172.95,172.9,18.51743646]
[1729735750228,29.809864,172.95,172.9,18.51743646]
[1729735750756,24.027864,172.93,172.89,18.51743646]
[1729735751561,0.25098,172.93,172.89,18.51743646]
[1729735756958,6.03368,172.93,172.85,22.1659]
[1729735757173,18.51743646,172.91,172.86,18.51743646]
[1729735758240,23.776884,172.92,172.86,18.51743646]
[1729735758541,18.51743646,172.91,172.86,18.51743646]
[1729735758746,18.76841646,172.89,172.84,18.51743646]
[1729735759339,18.76841646,172.89,172.81,6.4223]
[1729735759544,18.51743646,172.86,172.8,15.9438]
[1729735759752,18.51743646,172.86,172.81,18.51743646]
[1729735760158,18.51743646,172.86,172.8,15.9438]
[1729735760364,18.51743646,172.86,172.81,18.51743646]
[1729735760569,18.51743646,172.86,172.8,15.9438]
[1729735760570,24.027864,172.86,172.83,18.51743646]
[1729735760757,24.027864,172.86,172.8,15.9438]
[1729735761069,24.027864,172.86,172.82,18.51743646]
[1729735761570,24.027864,172.86,172.8,15.9438]
[1729735761754,24.027864,172.86,172.82,18.51743646]
[1729735762164,48.33050046,172.86,172.8,15.9438]
[1729735762364,48.33050046,172.86,172.81,18.51743646]
[1729735762569,29.813064,172.86,172.81,18.51743646]
[1729735763871,48.33050046,172.86,172.81,18.51743646]
[1729735764178,18.51743646,172.85,172.8,18.51743646]
[1729735765241,42.54530046,172.84,172.79,18.51743646]
[1729735765649,18.51743646,172.82,172.77,18.51743646]
[1729735766459,18.51743646,172.83,172.78,18.51743646]
[1729735767092,29.814164,172.82,172.78,18.51743646]
[1729735767280,48.33160046,172.82,172.77,18.51743646]
[1729735767873,29.814164,172.82,172.77,18.51743646]
[1729735768877,6.1555,172.86,172.81,18.51743646]
[1729735769192,5.785,172.87,172.83,18.51743646]
[1729735769389,24.30243646,172.87,172.82,18.51743646]
[1729735770499,24.027864,172.86,172.82,18.51743646]
[1729735771579,48.33050046,172.86,172.81,18.51743646]
[1729735771771,18.51743646,172.85,172.8,18.51743646]
[1729735772596,24.027864,172.82,172.78,18.51743646]
[1729735773091,24.027864,172.85,172.81,18.51743646]
[1729735773300,24.027864,172.85,172.83,18.51743646]
[1729735774078,24.027864,172.85,172.84,18.51743646]
[1729735776284,24.027864,172.85,172.83,18.51743646]
[1729735776993,18.51743646,172.88,172.84,18.51743646]
[1729735777199,5.784,172.89,172.86,18.51743646]
[1729735778085,5.784,172.89,172.85,18.51743646]
[1729735778395,24.027864,172.88,172.85,18.51743646]
[1729735779480,29.812164,172.88,172.85,18.51743646]
[1729735780771,5.7826,172.93,172.87,18.51743646]
[1729735781100,5.7826,172.93,172.89,18.51743646]
[1729735781590,5.7826,172.93,172.9,18.51743646]
[1729735782083,24.027864,172.92,172.9,18.51743646]
[1729735782895,24.027864,172.92,172.89,18.51743646]
[1729735782896,23.902374,172.91,172.89,18.51743646]
[1729735783202,0.12549,172.9,172.89,18.51743646]
[1729735784578,23.427864,172.91,172.89,18.51743646]
[1729735784793,0.25098,172.9,172.89,18.51743646]
[1729735787008,23.427864,172.91,172.89,18.51743646]
[1729735787201,0.25098,172.9,172.89,18.51743646]
[1729735787795,0.25098,172.9,172.88,18.51743646]
[1729735790814,6.03468,172.9,172.83,15.8502]
[1729735790995,0.25098,172.88,172.8,6.2333]
[1729735791203,0.25098,172.88,172.85,18.51743646]
[1729735791703,0.25098,172.88,172.86,18.51743646]
[1729735791914,23.776884,172.89,172.86,18.51743646]
[1729735792289,23.776884,172.89,172.88,18.51743646]
[1729735792497,24.027864,172.89,172.88,18.51743646]
[1729735793118,5.7833,172.92,172.88,18.51743646]
[1729735793343,24.027864,172.91,172.89,18.51743646]
[1729735795922,5.781,172.98,172.9,18.51743646]
[1729735796090,5.781,172.98,172.86,16.2376]
[1729735796091,18.51743646,172.97,172.92,18.51743646]
[1729735796516,5.7816,172.96,172.92,18.51743646]
[1729735797306,24.027864,172.95,172.92,18.51743646]
[1729735797625,29.810164,172.95,172.92,18.51743646]
[1729735798532,48.32760046,172.95,172.9,18.51743646]
[1729735799532,29.810164,172.95,172.91,18.51743646]
[1729735799900,29.810164,172.95,172.86,16.2376]
[1729735800131,29.810164,172.95,172.92,18.51743646]
[1729735800336,29.810164,172.95,172.93,18.51743646]
[1729735800709,29.810164,172.95,172.92,18.51743646]
[1729735802440,29.810164,172.95,172.91,18.51743646]
[1729735802610,48.32760046,172.95,172.9,18.51743646]
[1729735804639,29.810164,172.95,172.91,18.51743646]
[1729735807048,42.54530046,172.93,172.86,16.2376]
[1729735807221,42.54530046,172.91,172.86,18.51743646]
[1729735807539,24.027864,172.9,172.86,18.51743646]
[1729735809247,42.54530046,172.9,172.85,18.51743646]
[1729735809544,24.027864,172.88,172.84,18.51743646]
[1729735813244,24.027864,172.86,172.81,16.2376]
[1729735813444,24.027864,172.86,172.83,18.51743646]
[1729735813639,24.027864,172.86,172.81,16.2376]
[1729735813846,24.027864,172.86,172.83,18.51743646]
[1729735814420,24.027864,172.86,172.81,16.2376]
[1729735814421,24.027864,172.86,172.82,18.51743646]
[1729735814655,18.51743646,172.85,172.8,18.51743646]
[1729735814826,24.027864,172.84,172.8,18.51743646]
[1729735816159,24.027864,172.84,172.77,15.8112]
[1729735816160,24.027864,172.84,172.81,18.51743646]
[1729735816347,23.776884,172.85,172.83,18.51743646]
[1729735816542,24.027864,172.85,172.84,18.51743646]
[1729735817360,5.784,172.89,172.84,18.51743646]
[1729735817529,5.784,172.89,172.86,18.51743646]
[1729735817733,21.8437,172.93,172.87,18.51743646]
[1729735817953,5.783,172.92,172.88,18.51743646]
[1729735818130,24.30043646,172.92,172.87,18.51743646]
[1729735819248,24.027864,172.91,172.87,18.51743646]
[1729735820061,29.811364,172.91,172.87,18.51743646]
[1729735820946,21.6616954,172.96,172.9,18.51743646]
[1729735820947,12.7883954,172.96,172.9,18.51743646]
[1729735821145,12.7883954,172.96,172.93,18.51743646]
[1729735821950,12.7883954,172.96,172.92,18.51743646]
[1729735822253,24.027864,172.95,172.92,18.51743646]
[1729735824449,29.809864,172.95,172.92,18.51743646]
[1729735824631,7.0066954,172.96,172.93,18.51743646]
[1729735824838,5.7803,173.0,172.95,18.51743646]
[1729735825037,5.7803,173.0,172.97,18.51743646]
[1729735825251,5.7803,173.0,172.96,18.51743646]
[1729735825953,0.25098,172.99,172.96,18.51743646]
[1729735826254,12.3713,173.02,172.98,18.51743646]
[1729735826465,0.606243,173.04,173.0,18.51743646]
[1729735827458,5.7794,173.03,173.0,18.51743646]
[1729735827659,0.606243,173.04,173.01,18.51743646]
[1729735828942,24.027864,173.03,173.01,18.51743646]
[1729735829456,24.027864,173.03,173.02,18.51743646]
[1729735829756,24.027864,173.03,173.01,18.51743646]
[1729735832851,29.807264,173.03,172.99,18.51743646]
[1729735833558,29.807264,173.03,173.0,18.51743646]
[1729735835563,29.807264,173.03,172.96,15.1701]
[1729735835749,29.807264,173.03,173.0,18.51743646]
[1729735836867,48.32470046,173.03,172.96,15.1701]
[1729735837067,48.32470046,173.03,172.98,18.51743646]
[1729735837365,42.54530046,173.01,172.92,15.1701]